fUSD/lending_fUSD_20240708
["ID","MTS","AMOUNT","RATE_DAILY","PERIOD"]
[331447589,1720421173535,-515.2,0.00034028,49]
[331447590,1720421173572,-1239.51,0.00034028,41]
[331447591,1720421173610,-904.55,0.00034028,48]
[331447592,1720421173649,-611.99,0.00034028,31]
[331447593,1720421173686,-1239.51,0.00034028,42]
[331447594,1720421173722,-515.2,0.00034028,50]
[331447595,1720421173760,-904.55,0.00034028,49]
[331447596,1720421173796,-500.0,0.00034028,30]
[331447597,1720421174047,-611.99,0.00034028,32]
[331447598,1720421174090,-1239.51,0.00034028,43]
[331447599,1720421174134,-515.2,0.00034028,51]
[331447600,1720421174176,-904.55,0.00034028,50]
[331447601,1720421174218,-611.99,0.00034028,33]
[331447602,1720421174258,-1239.51,0.00034028,44]
[331447603,1720421174297,-500.0,0.00034028,31]
[331447604,1720421174337,-515.2,0.00034028,52]
[331447605,1720421174375,-904.55,0.00034028,51]
[331447606,1720421174416,-611.99,0.00034028,34]
[331447607,1720421174457,-515.43676782,0.00034028,53]
[331447608,1720421174496,-1239.51,0.00034028,45]
[331447609,1720421174535,-500.0,0.00034028,32]
[331447610,1720421174574,-904.55,0.00034028,52]
[331447611,1720421174615,-611.99,0.00034028,35]
[331447612,1720421174658,-1239.51,0.00034028,46]
[331447613,1720421174697,-904.65631454,0.00034028,53]
[331447614,1720421174736,-500.0,0.00034028,30]
[331447615,1720421174774,-1239.51,0.00034028,47]
[331447616,1720421174813,-500.0,0.00034028,33]
[331447617,1720421174854,-500.0,0.00034028,34]
[331447618,1720421174896,-500.0,0.00034028,31]
[331447619,1720421174935,-1239.51,0.00034028,48]
[331447620,1720421174973,-500.0,0.00034028,35]
[331447621,1720421175011,-500.0,0.00034028,32]
[331447622,1720421175049,-1239.51,0.00034028,49]
[331447623,1720421175089,-500.0,0.00034028,36]
[331447624,1720421175127,-500.0,0.00034028,33]
[331447625,1720421175166,-1239.51,0.00034028,50]
[331447626,1720421175203,-500.0,0.00034028,34]
[331447627,1720421175240,-1239.51,0.00034028,51]
[331447628,1720421175276,-500.0,0.00034028,37]
[331447629,1720421175313,-500.0,0.00034028,30]
[331447630,1720421175351,-500.0,0.00034028,35]
[331447631,1720421175387,-1239.51,0.00034028,52]
[331447632,1720421175422,-500.0,0.00034028,38]
[331447633,1720421175459,-500.0,0.00034028,31]
[331447634,1720421175496,-500.0,0.00034028,30]
[331447635,1720421175532,-500.0,0.00034028,36]
[331447636,1720421175570,-1239.53176549,0.00034028,53]
[331447637,1720421175608,-500.0,0.00034028,30]
[331447638,1720421175644,-500.0,0.00034028,39]
[331447639,1720421175681,-405.36306943,0.00034028,32]
[331447640,1720421175720,-500.0,0.00034028,31]
[331447641,1720421175758,-500.0,0.00034028,37]
[331447642,1720421175795,-500.0,0.00034028,40]
[331447643,1720421175834,-500.0,0.00034028,38]
[331447644,1720421175872,-500.0,0.00034028,32]
[331447645,1720421175908,-500.0,0.00034028,31]
[331447646,1720421175946,-500.0,0.00034028,41]
[331447647,1720421175984,-746.11,0.00034028,30]
[331447648,1720421176021,-500.0,0.00034028,39]
[331447649,1720421176058,-500.0,0.00034028,33]
[331447650,1720421176095,-746.11,0.00034028,31]
[331447651,1720421176131,-500.0,0.00034028,42]
[331447652,1720421176168,-500.0,0.00034028,32]
[331447653,1720421176204,-500.0,0.00034028,40]
[331447654,1720421176241,-500.0,0.00034028,34]
[331447655,1720421176277,-746.11,0.00034028,32]
[331447656,1720421176314,-500.0,0.00034028,43]
[331447657,1720421176350,-500.0,0.00034028,33]
[331447658,1720421176387,-500.0,0.00034028,41]
[331447659,1720421176424,-746.11,0.00034028,33]
[331447660,1720421176458,-500.0,0.00034028,44]
[331447661,1720421176497,-500.0,0.00034028,35]
[331447662,1720421176535,-500.0,0.00034028,42]
[331447663,1720421176572,-500.0,0.00034028,34]
[331447664,1720421176610,-338.14591212,0.00034028,36]
[331447665,1720421176648,-500.0,0.00034028,45]
[331447666,1720421176684,-526.25077363,0.00034028,35]
[331447667,1720421176720,-593.49633559,0.00034028,46]
[331447668,1720421176758,-746.11,0.00034028,34]
[331447669,1720421176796,-500.0,0.00034028,43]
[331447670,1720421176836,-746.11,0.00034028,35]
[331447671,1720421176873,-500.0,0.00034028,44]
[331447672,1720421176912,-746.11,0.00034028,36]
[331447673,1720421176950,-500.0,0.00034028,45]
[331447674,1720421176987,-746.11,0.00034028,37]
[331447675,1720421177024,-613.93,0.00034028,30]
[331447676,1720421177062,-500.0,0.00034028,46]
[331447677,1720421177099,-746.11,0.00034028,38]
[331447678,1720421177137,-613.93,0.00034028,31]
[331447679,1720421177176,-500.0,0.00034028,47]
[331447680,1720421177214,-746.11,0.00034028,39]
[331447681,1720421177251,-613.93,0.00034028,32]
[331447682,1720421177289,-500.0,0.00034028,30]
[331447683,1720421177325,-746.11,0.00034028,40]
[331447684,1720421177363,-500.0,0.00034028,48]
[331447685,1720421177401,-500.0,0.00034028,31]
[331447686,1720421177440,-613.93,0.00034028,33]
[331447687,1720421177479,-500.43486668,0.00034028,30]
[331447688,1720421177518,-586.35449746,0.00034028,49]
[331447689,1720421177557,-746.11,0.00034028,41]
[331447690,1720421177596,-500.0,0.00034028,32]
[331447691,1720421177636,-613.93,0.00034028,34]
[331447692,1720421177676,-613.93,0.00034028,35]
[331447693,1720421177718,-500.0,0.00034028,33]
[331447694,1720421177756,-746.11,0.00034028,42]
[331447695,1720421177794,-613.93,0.00034028,36]
[331447696,1720421177833,-611.99,0.00034028,36]
[331447697,1720421177871,-746.11,0.00034028,43]
[331447698,1720421177909,-611.99,0.00034028,37]
[331447699,1720421177947,-613.93,0.00034028,37]
[331447700,1720421177985,-500.0,0.00034028,34]
[331447701,1720421178243,-746.11,0.00034028,44]
[331447702,1720421178281,-613.93,0.00034028,38]
[331447703,1720421178316,-500.0,0.00034028,35]
[331447704,1720421178352,-746.11,0.00034028,45]
[331447705,1720421178393,-611.99,0.00034028,38]
[331447706,1720421178433,-613.93,0.00034028,39]
[331447707,1720421178473,-500.0,0.00034028,36]
[331447708,1720421178511,-746.11,0.00034028,46]
[331447709,1720421178550,-500.0,0.00034028,30]
[331447710,1720421178593,-611.99,0.00034028,39]
[331447711,1720421178631,-613.93,0.00034028,40]
[331447712,1720421178675,-500.0,0.00034028,37]
[331447713,1720421178715,-746.11,0.00034028,47]
[331447714,1720421178753,-500.0,0.00034028,31]
[331447715,1720421178792,-613.93,0.00034028,41]
[331447716,1720421178830,-746.11,0.00034028,48]
[331447717,1720421178867,-500.0,0.00034028,32]
[331447718,1720421178908,-500.0,0.00034028,30]
[331447719,1720421178947,-500.0,0.00034028,30]
[331447720,1720421178984,-613.93,0.00034028,42]
[331447721,1720421179022,-611.99,0.00034028,40]
[331447722,1720421179061,-746.11,0.00034028,49]
[331447723,1720421179099,-500.0,0.00034028,33]
[331447724,1720421179136,-519.97436231,0.00034028,31]
[331447725,1720421179173,-500.0,0.00034028,38]
[331447726,1720421179212,-500.0,0.00034028,31]
[331447727,1720421179253,-613.93,0.00034028,43]
[331447728,1720421179292,-611.99,0.00034028,41]
[331447729,1720421179335,-746.11,0.00034028,50]
[331447730,1720421179375,-500.0,0.00034028,34]
[331447731,1720421179415,-500.0,0.00034028,39]
[331447732,1720421179454,-500.0,0.00034028,32]
[331447733,1720421179494,-611.99,0.00034028,42]
[331447734,1720421179533,-746.11,0.00034028,51]
[331447735,1720421179571,-511.12625501,0.00034028,35]
[331447736,1720421179610,-500.0,0.00034028,40]
[331447737,1720421179648,-500.0,0.00034028,33]
[331447738,1720421179685,-613.93,0.00034028,44]
[331447739,1720421179721,-500.0,0.00034028,41]
[331447740,1720421179759,-500.0,0.00034028,34]
[331447741,1720421179796,-611.99,0.00034028,43]
[331447742,1720421179832,-613.93,0.00034028,45]
[331447743,1720421179873,-746.11,0.00034028,52]
[331447744,1720421179911,-646.49797472,0.00034028,42]
[331447745,1720421179949,-500.0,0.00034028,35]
[331447746,1720421179988,-500.0,0.00034028,30]
[331447747,1720421180025,-611.99,0.00034028,44]
[331447748,1720421180064,-613.93,0.00034028,46]
[331447749,1720421180100,-500.0,0.00034028,36]
[331447750,1720421180138,-611.99,0.00034028,45]
[331447751,1720421180175,-613.93,0.00034028,47]
[331447752,1720421180212,-746.2966561,0.00034028,53]
[331447753,1720421180248,-500.0,0.00034028,37]
[331447754,1720421180285,-611.99,0.00034028,46]
[331447755,1720421180322,-613.93,0.00034028,48]
[331447756,1720421180359,-500.0,0.00034028,31]
[331447757,1720421180395,-174.00399126,0.00034028,38]
[331447758,1720421180433,-611.99,0.00034028,47]
[331447759,1720421180469,-500.0,0.00034028,30]
[331447760,1720421180507,-611.99,0.00034028,48]
[331447761,1720421180543,-613.93,0.00034028,49]
[331447762,1720421180579,-500.0,0.00034028,32]
[331447763,1720421180618,-500.0,0.00034028,31]
[331447764,1720421180656,-611.99,0.00034028,49]
[331447765,1720421180694,-511.43497717,0.00034028,33]
[331447766,1720421180734,-613.93,0.00034028,50]
[331447767,1720421180771,-500.0,0.00034028,32]
[331447768,1720421180808,-611.99,0.00034028,50]
[331447769,1720421180846,-500.0,0.00034028,33]
[331447770,1720421180884,-613.93,0.00034028,51]
[331447771,1720421180921,-611.99,0.00034028,51]
[331447772,1720421180958,-500.0,0.00034028,34]
[331447773,1720421180996,-613.93,0.00034028,52]
[331447774,1720421181032,-611.99,0.00034028,52]
[331447775,1720421181069,-500.0,0.00034028,35]
[331447776,1720421181109,-614.06269786,0.00034028,53]
[331447777,1720421181147,-612.07,0.00034028,53]
[331447778,1720421181182,-500.0,0.00034028,36]
[331447779,1720421181219,-500.0,0.00034028,30]
[331447780,1720421181256,-500.0,0.00034028,37]
[331447781,1720421181293,-500.0,0.00034028,31]
[331447782,1720421181333,-500.0,0.00034028,38]
[331447783,1720421181372,-500.0,0.00034028,32]
[331447784,1720421181409,-500.0,0.00034028,39]
[331447785,1720421181447,-500.0,0.00034028,33]
[331447786,1720421181487,-500.0,0.00034028,40]
[331447787,1720421181526,-500.0,0.00034028,34]
[331447788,1720421181563,-179.18128111,0.00034028,41]
[331447789,1720421181601,-500.0,0.00034028,35]
[331447790,1720421181642,-500.0,0.00034028,30]
[331447791,1720421181681,-500.0,0.00034028,36]
[331447792,1720421181720,-500.0,0.00034028,37]
[331447793,1720421181758,-500.0,0.00034028,31]
[331447794,1720421181795,-500.0,0.00034028,32]
[331447795,1720421181836,-500.0,0.00034028,38]
[331447796,1720421181875,-500.0,0.00034028,39]
[331447797,1720421181913,-500.0,0.00034028,40]
[331447798,1720421181952,-787.06,0.00034028,30]
[331447799,1720421181990,-500.0,0.00034028,30]
[331447800,1720421182028,-500.0,0.00034028,41]
[331447801,1720421182066,-787.06,0.00034028,31]
[331447802,1720421182105,-500.0,0.00034028,30]
[331447803,1720421182144,-500.0,0.00034028,42]
[331447804,1720421182182,-787.06,0.00034028,32]
[331447805,1720421182438,-500.0,0.00034028,31]
[331447806,1720421182477,-500.0,0.00034028,31]
[331447807,1720421182516,-500.0,0.00034028,43]
[331447808,1720421182554,-787.06,0.00034028,33]
[331447809,1720421182592,-500.0,0.00034028,32]
[331447810,1720421182631,-500.0,0.00034028,32]
[331447811,1720421182674,-500.0,0.00034028,44]
[331447812,1720421182713,-787.06,0.00034028,34]
[331447813,1720421182759,-500.0,0.00034028,33]
[331447814,1720421182797,-500.0,0.00034028,30]
[331447815,1720421182836,-787.06,0.00034028,35]
[331447816,1720421182874,-500.0,0.00034028,34]
[331447817,1720421182913,-490.78100915,0.00034028,31]
[331447818,1720421182952,-500.0,0.00034028,30]
[331447819,1720421182990,-500.0,0.00034028,33]
[331447820,1720421183031,-787.06,0.00034028,36]
[331447821,1720421183070,-500.0,0.00034028,45]
[331447822,1720421183111,-500.0,0.00034028,30]
[331447823,1720421183149,-500.0,0.00034028,34]
[331447824,1720421183187,-505.17064933,0.00034028,31]
[331447825,1720421183227,-787.06,0.00034028,37]
[331447826,1720421183265,-500.0,0.00034028,31]
[331447827,1720421183305,-500.0,0.00034028,35]
[331447828,1720421183345,-787.06,0.00034028,38]
[331447829,1720421183383,-500.0,0.00034028,32]
[331447830,1720421183421,-500.0,0.00034028,46]
[331447831,1720421183460,-507.67717532,0.00034028,36]
[331447832,1720421183496,-427.39467089,0.00034028,35]
[331447833,1720421183534,-787.06,0.00034028,39]
[331447834,1720421183571,-500.0,0.00034028,33]
[331447835,1720421183609,-500.0,0.00034028,47]
[331447836,1720421183648,-787.06,0.00034028,40]
[331447837,1720421183686,-500.0,0.00034028,48]
[331447838,1720421183722,-519.69298612,0.00034028,34]
[331447839,1720421183760,-787.06,0.00034028,41]
[331447840,1720421183798,-500.0,0.00034028,49]
[331447841,1720421183836,-787.06,0.00034028,42]
[331447842,1720421183873,-500.0,0.00034028,50]
[331447843,1720421183912,-1957.69,0.00034028,30]
[331447844,1720421183951,-787.06,0.00034028,43]
[331447845,1720421183990,-500.0,0.00034028,51]
[331447846,1720421184029,-787.06,0.00034028,44]
[331447847,1720421184073,-1957.69,0.00034028,31]
[331447848,1720421184115,-500.0,0.00034028,52]
[331447849,1720421184155,-787.06,0.00034028,45]
[331447850,1720421184195,-1957.69,0.00034028,32]
[331447851,1720421184233,-197.84,0.00034028,53]
[331447852,1720421184271,-787.06,0.00034028,46]
[331447853,1720421184311,-500.0,0.00034028,30]
[331447854,1720421184352,-1957.69,0.00034028,33]
[331447855,1720421184392,-506.32483349,0.00034028,30]
[331447856,1720421184431,-500.0,0.00034028,31]
[331447857,1720421184473,-787.06,0.00034028,47]
[331447858,1720421184512,-1957.69,0.00034028,34]
[331447859,1720421184550,-500.0,0.00034028,32]
[331447860,1720421184590,-787.06,0.00034028,48]
[331447861,1720421184629,-1957.69,0.00034028,35]
[331447862,1720421184671,-500.0,0.00034028,33]
[331447863,1720421184711,-787.06,0.00034028,49]
[331447864,1720421184752,-1957.69,0.00034028,36]
[331447865,1720421184791,-500.0,0.00034028,34]
[331447866,1720421184829,-787.06,0.00034028,50]
[331447867,1720421184872,-1957.69,0.00034028,37]
[331447868,1720421184915,-787.06,0.00034028,51]
[331447869,1720421184956,-1957.69,0.00034028,38]
[331447870,1720421184995,-787.06,0.00034028,52]
[331447871,1720421185033,-379.12330225,0.00034028,35]
[331447872,1720421185070,-500.0,0.00034028,30]
[331447873,1720421185108,-1957.69,0.00034028,39]
[331447874,1720421185148,-787.10985808,0.00034028,53]
[331447875,1720421185186,-500.0,0.00034028,31]
[331447876,1720421185224,-1957.69,0.00034028,40]
[331447877,1720421185262,-502.46664724,0.00034028,32]
[331447878,1720421185297,-1957.69,0.00034028,41]
[331447879,1720421185334,-1957.69,0.00034028,42]
[331447880,1720421185374,-208.30643813,0.00034028,30]
[331447881,1720421185411,-1957.69,0.00034028,43]
[331447882,1720421185451,-1957.69,0.00034028,44]
[331447883,1720421185489,-956.77,0.00034028,30]
[331447884,1720421185530,-1957.69,0.00034028,45]
[331447885,1720421185569,-500.0,0.00034028,30]
[331447886,1720421185607,-956.77,0.00034028,31]
[331447887,1720421185647,-500.0,0.00034028,31]
[331447888,1720421185687,-1957.69,0.00034028,46]
[331447889,1720421185727,-500.0,0.00034028,30]
[331447890,1720421185766,-956.77,0.00034028,32]
[331447891,1720421185805,-1782.22,0.00034028,30]
[331447892,1720421185845,-516.61695537,0.00034028,32]
[331447893,1720421185882,-1957.69,0.00034028,47]
[331447894,1720421185919,-500.0,0.00034028,31]
[331447895,1720421185958,-956.77,0.00034028,33]
[331447896,1720421185996,-304.97064447,0.00034028,30]
[331447897,1720421186032,-1782.22,0.00034028,31]
[331447898,1720421186070,-1957.69,0.00034028,48]
[331447899,1720421186106,-500.0,0.00034028,32]
[331447900,1720421186145,-1782.22,0.00034028,32]
[331447901,1720421186182,-500.0,0.00034028,33]
[331447902,1720421186219,-1957.69,0.00034028,49]
[331447903,1720421186256,-956.77,0.00034028,34]
[331447904,1720421186294,-500.0,0.00034028,30]
[331447905,1720421186330,-1782.22,0.00034028,33]
[331447906,1720421186371,-500.0,0.00034028,34]
[331447907,1720421186409,-1957.69,0.00034028,50]
[331447908,1720421186664,-956.77,0.00034028,35]
[331447909,1720421186702,-500.0,0.00034028,31]
[331447910,1720421186741,-1782.22,0.00034028,34]
[331447911,1720421186780,-1957.69,0.00034028,51]
[331447912,1720421186818,-500.0,0.00034028,35]
[331447913,1720421186856,-500.0,0.00034028,30]
[331447914,1720421186893,-956.77,0.00034028,36]
[331447915,1720421186932,-500.0,0.00034028,36]
[331447916,1720421186970,-1957.69,0.00034028,52]
[331447917,1720421187008,-500.0,0.00034028,31]
[331447918,1720421187045,-1782.22,0.00034028,35]
[331447919,1720421187083,-500.0,0.00034028,32]
[331447920,1720421187124,-956.77,0.00034028,37]
[331447921,1720421187162,-500.0,0.00034028,37]
[331447922,1720421187200,-1957.83746042,0.00034028,53]
[331447923,1720421187239,-500.0,0.00034028,32]
[331447924,1720421187276,-1782.22,0.00034028,36]
[331447925,1720421187313,-500.0,0.00034028,33]
[331447926,1720421187352,-500.0,0.00034028,38]
[331447927,1720421187389,-500.0,0.00034028,33]
[331447928,1720421187427,-500.0,0.00034028,34]
[331447929,1720421187466,-1782.22,0.00034028,37]
[331447930,1720421187504,-500.0,0.00034028,39]
[331447931,1720421187542,-956.77,0.00034028,38]
[331447932,1720421187579,-500.0,0.00034028,34]
[331447933,1720421187619,-500.0,0.00034028,35]
[331447934,1720421187662,-1782.22,0.00034028,38]
[331447935,1720421187700,-500.0,0.00034028,40]
[331447936,1720421187740,-956.77,0.00034028,39]
[331447937,1720421187778,-500.0,0.00034028,35]
[331447938,1720421187816,-506.0,0.00034028,30]
[331447939,1720421187855,-182.11350183,0.00034028,36]
[331447940,1720421187892,-500.0,0.00034028,41]
[331447941,1720421187929,-956.77,0.00034028,40]
[331447942,1720421187969,-500.0,0.00034028,36]
[331447943,1720421188006,-1782.22,0.00034028,39]
[331447944,1720421188042,-506.0,0.00034028,31]
[331447945,1720421188080,-500.0,0.00034028,42]
[331447946,1720421188118,-956.77,0.00034028,41]
[331447947,1720421188157,-1782.22,0.00034028,40]
[331447948,1720421188196,-500.0,0.00034028,37]
[331447949,1720421188234,-506.0,0.00034028,32]
[331447950,1720421188273,-500.0,0.00034028,43]
[331447951,1720421188312,-1782.22,0.00034028,41]
[331447952,1720421188351,-506.0,0.00034028,33]
[331447953,1720421188389,-500.0,0.00034028,38]
[331447954,1720421188428,-500.0,0.00034028,44]
[331447955,1720421188468,-956.77,0.00034028,42]
[331447956,1720421188507,-500.0,0.00034028,39]
[331447957,1720421188544,-506.0,0.00034028,34]
[331447958,1720421188584,-500.0,0.00034028,30]
[331447959,1720421188623,-956.77,0.00034028,43]
[331447960,1720421188663,-223.24548765,0.00034028,30]
[331447961,1720421188703,-500.0,0.00034028,45]
[331447962,1720421188744,-506.0,0.00034028,35]
[331447963,1720421188782,-1782.22,0.00034028,42]
[331447964,1720421188821,-623.66324363,0.00034028,46]
[331447965,1720421188860,-200.22040622,0.00034028,30]
[331447966,1720421188896,-1782.22,0.00034028,43]
[331447967,1720421188937,-506.0,0.00034028,36]
[331447968,1720421188976,-500.0,0.00034028,31]
[331447969,1720421189015,-956.77,0.00034028,44]
[331447970,1720421189052,-1782.22,0.00034028,44]
[331447971,1720421189091,-506.0,0.00034028,37]
[331447972,1720421189129,-956.77,0.00034028,45]
[331447973,1720421189167,-500.0,0.00034028,32]
[331447974,1720421189206,-1782.22,0.00034028,45]
[331447975,1720421189245,-500.0,0.00034028,30]
[331447976,1720421189284,-506.0,0.00034028,38]
[331447977,1720421189322,-956.77,0.00034028,46]
[331447978,1720421189361,-1782.22,0.00034028,46]
[331447979,1720421189402,-506.0,0.00034028,39]
[331447980,1720421189443,-956.77,0.00034028,47]
[331447981,1720421189482,-500.0,0.00034028,33]
[331447982,1720421189522,-1782.22,0.00034028,47]
[331447983,1720421189565,-506.0,0.00034028,40]
[331447984,1720421189604,-956.77,0.00034028,48]
[331447985,1720421189646,-500.0,0.00034028,34]
[331447986,1720421189686,-526.19076053,0.00034028,30]
[331447987,1720421189725,-956.77,0.00034028,49]
[331447988,1720421189767,-506.0,0.00034028,41]
[331447989,1720421189807,-1782.22,0.00034028,48]
[331447990,1720421189846,-500.0,0.00034028,35]
[331447991,1720421189885,-500.0,0.00034028,30]
[331447992,1720421189925,-956.77,0.00034028,50]
[331447993,1720421189964,-1782.22,0.00034028,49]
[331447994,1720421190003,-506.0,0.00034028,42]
[331447995,1720421190043,-500.0,0.00034028,36]
[331447996,1720421190082,-500.0,0.00034028,31]
[331447997,1720421190120,-956.77,0.00034028,51]
[331447998,1720421190158,-1782.22,0.00034028,50]
[331447999,1720421190196,-506.0,0.00034028,43]
[331448000,1720421190235,-500.0,0.00034028,37]
[331448001,1720421190280,-500.0,0.00034028,32]
[331448002,1720421190319,-956.77,0.00034028,52]
[331448003,1720421190356,-1782.22,0.00034028,51]
[331448004,1720421190394,-500.0,0.00034028,38]
[331448005,1720421190431,-500.0,0.00034028,33]
[331448006,1720421190469,-956.83874953,0.00034028,53]
[331448007,1720421190505,-1782.22,0.00034028,52]
[331448008,1720421190543,-506.0,0.00034028,44]
[331448009,1720421190580,-500.0,0.00034028,34]
[331448010,1720421190618,-1782.24717002,0.00034028,53]
[331448011,1720421190934,-565.73996248,0.00034028,39]
[331448012,1720421190979,-506.0,0.00034028,45]
[331448013,1720421191016,-500.0,0.00034028,35]
[331448014,1720421191055,-506.0,0.00034028,46]
[331448015,1720421191100,-500.0,0.00034028,36]
[331448016,1720421191138,-523.6614662,0.00034028,30]
[331448017,1720421191178,-506.0,0.00034028,47]
[331448018,1720421191216,-500.0,0.00034028,37]
[331448019,1720421191254,-506.0,0.00034028,48]
[331448020,1720421192526,-500.0,0.00034028,38]
[331448021,1720421192578,-500.0,0.00034028,30]
[331448022,1720421192622,-506.0,0.00034028,49]
[331448023,1720421192667,-500.0,0.00034028,39]
[331448024,1720421192711,-500.0,0.00034028,31]
[331448025,1720421192757,-506.0,0.00034028,50]
[331448026,1720421192799,-500.0,0.00034028,40]
[331448027,1720421192840,-500.0,0.00034028,32]
[331448028,1720421192882,-500.0,0.00034028,33]
[331448029,1720421192923,-500.0,0.00034028,41]
[331448030,1720421192963,-506.0,0.00034028,51]
[331448031,1720421193003,-500.0,0.00034028,34]
[331448032,1720421193043,-506.0,0.00034028,52]
[331448033,1720421193083,-500.0,0.00034028,42]
[331448034,1720421193126,-500.0,0.00034028,35]
[331448035,1720421193168,-500.0,0.00034028,43]
[331448036,1720421193207,-500.0,0.00034028,30]
[331448037,1720421193247,-500.0,0.00034028,36]
[331448038,1720421193287,-500.0,0.00034028,44]
[331448039,1720421193325,-506.22214915,0.00034028,53]
[331448040,1720421193365,-500.0,0.00034028,31]
[331448041,1720421193405,-500.0,0.00034028,45]
[331448042,1720421193444,-500.0,0.00034028,37]
[331448043,1720421193486,-507.69084016,0.00034028,30]
[331448044,1720421193525,-585.74,0.00034028,30]
[331448045,1720421193564,-500.0,0.00034028,32]
[331448046,1720421193606,-500.0,0.00034028,46]
[331448047,1720421193645,-500.0,0.00034028,38]
[331448048,1720421193685,-585.74,0.00034028,31]
[331448049,1720421193726,-500.0,0.00034028,33]
[331448050,1720421193765,-559.42248704,0.00034028,47]
[331448051,1720421193804,-500.0,0.00034028,39]
[331448052,1720421193844,-585.74,0.00034028,32]
[331448053,1720421193892,-500.0,0.00034028,34]
[331448054,1720421193941,-372.1714445,0.00034028,40]
[331448055,1720421193984,-585.74,0.00034028,33]
[331448056,1720421194027,-500.0,0.00034028,35]
[331448057,1720421194070,-585.74,0.00034028,34]
[331448058,1720421194114,-500.0,0.00034028,36]
[331448059,1720421194157,-500.0,0.00034028,37]
[331448060,1720421194201,-585.74,0.00034028,35]
[331448061,1720421194245,-200.22333157,0.00034028,30]
[331448062,1720421194288,-323.29760852,0.00034028,38]
[331448063,1720421194331,-585.74,0.00034028,36]
[331448064,1720421194374,-585.74,0.00034028,37]
[331448065,1720421194418,-769.9,0.00034028,30]
[331448066,1720421194470,-769.9,0.00034028,31]
[331448067,1720421194512,-1000.87,0.00034028,30]
[331448068,1720421194554,-585.74,0.00034028,38]
[331448069,1720421194595,-769.9,0.00034028,32]
[331448070,1720421194638,-1000.87,0.00034028,31]
[331448071,1720421194683,-720.0,0.00034028,30]
[331448072,1720421194724,-2121.62,0.00034028,30]
[331448073,1720421194766,-585.74,0.00034028,39]
[331448074,1720421194814,-720.0,0.00034028,31]
[331448075,1720421194858,-1000.87,0.00034028,32]
[331448076,1720421194899,-769.9,0.00034028,33]
[331448077,1720421194942,-2121.62,0.00034028,31]
[331448078,1720421194987,-585.74,0.00034028,40]
[331448079,1720421195028,-720.0,0.00034028,32]
[331448080,1720421195069,-500.0,0.00034028,30]
[331448081,1720421195110,-1000.87,0.00034028,33]
[331448082,1720421195150,-769.9,0.00034028,34]
[331448083,1720421195190,-2121.62,0.00034028,32]
[331448084,1720421195230,-585.74,0.00034028,41]
[331448085,1720421195270,-500.0,0.00034028,31]
[331448086,1720421195309,-720.0,0.00034028,33]
[331448087,1720421195352,-769.9,0.00034028,35]
[331448088,1720421195391,-2121.62,0.00034028,33]